Cogmind - Beta 13 @@@ ROGUE MODE // 2024.04.11 @ 17:18:18 Player: Conlarando Result: Destroyed by ND-N4Q(R) with Subdweller Beam Cannon Performance ------------- Evolutions (0) 0 Regions Visited (3) 600 Robots Destroyed (40) 200 Value Destroyed (1059) 1059 Prototype IDs (2) 40 Alien Tech Used (0) 0 Bonus (-174) -174 TOTAL SCORE: 1725 Bonus ------- Friendly Fire -174 Cogmind --------- Core Integrity 0/250 Matter 271/300 Energy 197/200 System Corruption 0% Temperature Hot (266) Movement Treading (165) Location -10/Subcaves Parts ------- > --- POWER (1) -------- Subdweller Power Source > --- PROPULSION (2) --- Light Treads Armored Treads > --- UTILITY (2) ------ Large Storage Unit Signal Interpreter > --- WEAPON (2) ------- Battle Cannon Grenade Launcher > --- INVENTORY (15) --- Deuterium Engine Light Nuclear Core Flight Unit Small Storage Unit Cargo Storage Unit Sensor Array ECM Suite Light Armor Plating Scrap Shield Assault Rifle Assault Rifle Light Cannon Datajack Peak State ------------ > --- POWER ------------ Light Nuclear Core > --- PROPULSION ------- Light Treads Armored Treads > --- UTILITY ---------- Large Storage Unit Signal Interpreter > --- WEAPON ----------- Light Cannon Grenade Launcher > --- INVENTORY -------- Deuterium Engine Light Nuclear Core Light Treads Flight Unit Small Storage Unit Cargo Storage Unit Sensor Array ECM Suite Scrap Shield Assault Rifle Assault Rifle Light Cannon Datajack [Rating: 13] Favorites ----------- Power Ion Engine Engine Ion Engine Power Core Light Nuclear Core Propulsion Light Treads Treads Light Treads Utility Large Storage Unit Storage Large Storage Unit Processor Signal Interpreter Protection Backup Plating I Weapon Light Cannon Energy Gun Small Laser Ballistic Gun Assault Rifle Ballistic Cannon Light Cannon Launcher Grenade Launcher Build | -11 -10 -10 -10 ------- Run | Yrd Mat Min Sub Slots Evolved . | . . . . Power . | . . . . Propulsion . | . . . . Utility . | . . . . Weapon . | . . . . Parts Attached 29 | 6 15 3 5 Power 4 | 1 1 1 1 Engine 3 | 1 1 . 1 Core 1 | . . 1 . Reactor . | . . . . Propulsion 6 | 2 2 1 1 Treads 6 | 2 2 1 1 Leg . | . . . . Wheel . | . . . . Hover . | . . . . Flight . | . . . . Utility 5 | 1 4 . . Device . | . . . . Storage 2 | 1 1 . . Processor 1 | . 1 . . Hackware . | . . . . Protection 2 | . 2 . . Artifact . | . . . . Weapon 14 | 2 8 1 3 Energy Gun 1 | . 1 . . Energy Cannon . | . . . . Ballistic Gun 4 | 2 2 . . Ballistic Cannon 5 | . 3 . 2 Launcher 4 | . 2 1 1 Special Weapon . | . . . . Impact Weapon . | . . . . Slashing Weapon . | . . . . Piercing Weapon . | . . . . Special Melee Weapon . | . . . . Unidentified Prototypes . | . . . . Parts Lost 5 | . 3 . 2 Power 2 | . 1 . 1 Propulsion 2 | . 1 . 1 Utility . | . . . . Weapon 1 | . 1 . . Highest Loss Streak 3 | . 3 . 1 To Critical Strikes . | . . . . Average Slot Usage (%) 96 | . 92 99 99 Engine 8 | . 13 3 4 Core 5 | . . 10 9 Treads 27 | . 27 28 27 Storage 14 | . 14 14 14 Processor 9 | . 4 14 14 Protection 1 | . 3 . . Ballistic Gun 4 | . 10 . . Ballistic Cannon 18 | . 12 26 18 Launcher 3 | . 3 1 9 Naked Turns . | . . . . Heaviest Build 32 | 11 32 31 31 Greatest Support 40 | 40 40 40 40 Greatest Overweight (x) 2 | 2 1 . 1 Average Overweight (x) . | . . . . Largest Inventory Capacity 15 | 8 15 15 15 Average Capacity 14 | 7 14 15 15 Most Carried 15 | 3 15 15 15 Average Carried 13 | 1 10 14 14 Final Capacity 15 | 8 15 15 15 Final Carried 15 | 3 15 15 15 Class Distribution -------------------- 100% | Mutant Dominant Class ---------------- Mutant | -10/Materials Mutant | -10/Mines Mutant | -10/Subcaves Resources | -11 -10 -10 -10 ----------- Run | Yrd Mat Min Sub Matter Collected 1212 | 195 524 338 155 Remotely . | . . . . Salvage Created 1435 | . 923 282 230 Parts 86 | . 50 15 21 Haulers Intercepted 2 | . 2 . . Recyclers Shooed . | . . . . Parts Field Recycled . | . . . . Retrieved Matter . | . . . . Parts Self-Destructed 10 | . . . 10 Prevented . | . . . . Kills | -11 -10 -10 -10 ------- Run | Yrd Mat Min Sub Combat Hostiles Destroyed 27 | . 12 10 5 Guns 5 | . 5 . . Cannons 20 | . 5 10 5 AOE 2 | . 2 . . Classes Destroyed 10 | . 7 1 2 Worker 2 | . 1 1 . Hauler 2 | . 2 . . Recycler 3 | . 3 . . Mechanic 1 | . 1 . . Operator 1 | . 1 . . Watcher 3 | . 3 . . Swarmer 3 | . . 2 1 Grunt 20 | . 12 8 . Subdweller 4 | . . . 4 Guerrilla 1 | . . . 1 Best Kill Streak 3 | . 3 2 3 Combat Bots Only 3 | . 3 2 3 Max Kills in Single Turn 2 | . 2 1 1 Gunslinging . | . . . . Exploded 2 | . 2 . . Melee . | . . . . Uniques/NPCs Destroyed . | . . . . Combat | -11 -10 -10 -10 -------- Run | Yrd Mat Min Sub Hostile Shots Fired 123 | . 56 42 25 Missed 28 | . 8 13 7 Damage Taken 1414 | . 629 395 390 Core 251 | . 61 90 100 Absorbed by Shields . | . . . . Core Remaining (%) 100 | 100 . . . Volleys Fired 132 | . 71 37 24 Largest 2 | . 2 2 2 Hottest 75 | . 75 70 70 Shots Fired 240 | . 142 68 30 Gun 119 | . 119 . . Cannon 110 | . 21 62 27 Launcher 11 | . 2 6 3 Special . | . . . . Kinetic 214 | . 125 62 27 Thermal 15 | . 15 . . Explosive 11 | . 2 6 3 Electromagnetic . | . . . . Robot Hit Streak 11 | . 11 10 9 Robot Miss Streak 4 | . 4 2 3 Penetration Max . | . . . . Secondary Targets . | . . . . Shots Hit Robots 141 | . 88 35 18 Core Hits 68 | . 42 15 11 Critical Kills 1 | . 1 . . Critical Parts Destroyed . | . . . . Critical Strikes 4 | . 2 1 1 Destroy 1 | . 1 . . Blast 3 | . 1 1 1 Melee Attacks . | . . . . Impact . | . . . . Slashing . | . . . . Piercing . | . . . . Sneak Attacks . | . . . . Combat Hostiles . | . . . . Follow-up Attacks . | . . . . Damage Inflicted 2197 | . 1115 672 410 Guns 813 | . 813 . . Cannons 1095 | . 213 615 267 Explosions 229 | . 86 . 143 Melee . | . . . . Ramming 60 | . 3 57 . Kinetic 1790 | . 908 615 267 Thermal 118 | . 118 . . Explosive 229 | . 86 . 143 Electromagnetic . | . . . . Impact . | . . . . Slashing . | . . . . Piercing . | . . . . Highest Corruption . | . . . . Average Corruption . | . . . . Corruption Purged . | . . . . Corruption Blocked . | . . . . Overload Shots . | . . . . Overflow Damage 10 | . . 4 6 Projectiles 4 | . . 4 . Explosions 6 | . . . 6 Melee . | . . . . Knockbacks 14 | . 2 7 5 Impact . | . . . . Kinetic 13 | . 2 7 4 Secondary 1 | . . . 1 Self-Inflicted Damage 57 | . 4 3 50 Shots 5 | . 1 1 3 Rammed 10 | . 1 9 . Targets Rammed 10 | . 1 9 . Kicked . | . . . . Crushed . | . . . . Highest Temperature 278 | . 79 222 278 Average Temperature 47 | . 30 61 267 Received Heat Transfer 908 | . 393 198 317 Effects 1 | . . 1 . Energy Bleed 1 | . . 1 . Siege Activations . | . . . . Robots Corrupted . | . . . . Combat Hostiles . | . . . . Parts Fried . | . . . . Impact Corruptions . | . . . . Robots Melted . | . . . . Combat Hostiles . | . . . . Parts Melted . | . . . . Heat Transferred 275 | . 275 . . Parts Sabotaged . | . . . . Parts Stolen . | . . . . Parts Stripped . | . . . . Power Chain Reactions . | . . . . Alert | -11 -10 -10 -10 ------- Run | Yrd Mat Min Sub Peak Influence 181 | . 181 115 . Initial . | . . . . Average 37 | . 39 37 . Maximum Alert Level . | . . . . Low Security (%) 100 | 100 100 100 . Level 1 . | . . . . Level 2 . | . . . . Level 3 . | . . . . Level 4 . | . . . . Level 5 . | . . . . High Security . | . . . . Max Security . | . . . . Squads Dispatched 5 | . 3 2 . Investigation 4 | . 2 2 . Extermination . | . . . . Reinforcement 1 | . 1 . . Assault . | . . . . Garrison . | . . . . Intercept . | . . . . Searches Triggered . | . . . . Construction Impeded . | . . . . Haulers Reinforced . | . . . . Active Scanning Responses . | . . . . Cargo Convoy Interrupts . | . . . . Stealth | -11 -10 -10 -10 --------- Run | Yrd Mat Min Sub Distress Signals 1 | . 1 . . Communications Jammed . | . . . . Distress Signals . | . . . . Times Spotted 46 | . 21 11 14 Peak Tracking Total 6 | . 3 2 6 Tactical Retreats 1 | . . . 1 Traps | -11 -10 -10 -10 ------- Run | Yrd Mat Min Sub Traps Triggered 1 | . 1 . . Indirectly . | . . . . Trap Hack Attempts . | . . . . Triggered . | . . . . Disarmed . | . . . . Reprogrammed . | . . . . Reused . | . . . . Traps Extracted . | . . . . Installed . | . . . . Triggered . | . . . . Machines | -11 -10 -10 -10 ---------- Run | Yrd Mat Min Sub Machines Disabled 1 | . . 1 . Max in Single Turn 1 | . . 1 . Machines Repaired . | . . . . Machines Dismantled . | . . . . Machines Sabotaged . | . . . . Overloaded Fab Kills . | . . . . Hacking | -11 -10 -10 -10 --------- Run | Yrd Mat Min Sub Machines Accessed 8 | . 5 3 . Terminals 5 | . 4 1 . Fabricators . | . . . . Repair Stations . | . . . . Recycling Units 1 | . 1 . . Scanalyzers . | . . . . Garrison Access . | . . . . Total Hacks 21 | . 15 6 . Successful 9 | . 6 3 . Failed 12 | . 9 3 . Catastrophic 2 | . 1 1 . Database Lockouts . | . . . . Manual 4 | . 1 3 . Terminals 16 | . 12 4 . Fabricators . | . . . . Repair Stations . | . . . . Recycling Units 3 | . 3 . . Scanalyzers . | . . . . Garrison Access . | . . . . Terminal Hacks 8 | . 5 3 . Record 1 | . . 1 . Prototype ID Bank 1 | . 1 . . Open Door 2 | . . 2 . Locate Traps 1 | . 1 . . Hauler Manifests 1 | . 1 . . Registered Prototypes 1 | . 1 . . Zone Layout 1 | . 1 . . Fabricator Hacks . | . . . . Repair Station Hacks . | . . . . Recycling Unit Hacks 1 | . 1 . . Retrieve Components 1 | . 1 . . Scanalyzer . | . . . . Garrison Access Hacks . | . . . . Unauthorized Hacks . | . . . . Terminals . | . . . . Fabricators . | . . . . Repair Stations . | . . . . Recycling Units . | . . . . Scanalyzers . | . . . . Garrison Access . | . . . . Data Cores Recovered . | . . . . Used . | . . . . Hacking Detections 6 | . 5 1 . Full Trace Events 2 | . 1 1 . Feedback Events . | . . . . Feedback Blocked . | . . . . Robot Schematics Acquired . | . . . . Robots Built . | . . . . Authchips . | . . . . Time . | . . . . Total Robot Build Rating . | . . . . Part Schematics Acquired . | . . . . Parts Built . | . . . . Authchips . | . . . . Time . | . . . . Total Part Build Rating . | . . . . Parts Repaired . | . . . . Time . | . . . . Parts Recycled . | . . . . Recycled Matter . | . . . . Retrieved Matter . | . . . . Retrieved Components 10 | . 10 . . Parts Scanalyzed . | . . . . Part Schematics Acquired . | . . . . Parts Damaged . | . . . . Bothacking | -11 -10 -10 -10 ------------ Run | Yrd Mat Min Sub Used RIF Installer . | . . . . Robots Hacked . | . . . . Non-combat . | . . . . Combat . | . . . . Robot Hacks Applied . | . . . . Relay Couplers Released . | . . . . Fabnet Peak Effective % . | . . . . Robots Rewired . | . . . . Allies Hacked . | . . . . Hacks Repelled . | . . . . Allies | -11 -10 -10 -10 -------- Run | Yrd Mat Min Sub Total Allies . | . . . . Largest Group . | . . . . Highest-Rated Group . | . . . . Highest-Rated Ally . | . . . . Total Orders . | . . . . Ally Attacks . | . . . . Total Damage . | . . . . Kills . | . . . . Allies Corrupted . | . . . . Allies Melted . | . . . . Intel | -11 -10 -10 -10 ------- Run | Yrd Mat Min Sub Robot Analysis Total . | . . . . Derelict Logs Recovered 1 | . . 1 . Drone Launches . | . . . . Drone Recoveries . | . . . . Exploration | -11 -10 -10 -10 ------------- Run | Yrd Mat Min Sub Turns Passed 6388 | 65 2949 2189 1185 Spaces Moved 3310 | 36 1537 1109 628 Core 5 | 5 . . . Treads 3305 | 31 1537 1109 628 Legs . | . . . . Wheels . | . . . . Hover . | . . . . Flight . | . . . . Fastest Speed 50 | 50 160 160 165 Average Speed 163 | 151 163 163 165 Slowest Speed 250 | 160 240 165 250 Overloaded Moves . | . . . . Propulsion Burnouts . | . . . . Robots Hopped . | . . . . Cave-ins Triggered . | . . . . Exploration Rate (%) 60 | 5 96 101 38 Regions Visited 3 Branch Regions 2 Pre-discovered Areas . | . . . . Known Exits Taken 2 | . 1 1 . Unknown Exits Taken 1 | 1 . . . Scrap Searched 3 | . . 1 2 Spaces Dug 45 | . 6 39 . Terrain Destroyed 76 | . 16 44 16 Melee . | . . . . Projectile . | . . . . AOE 76 | . 16 44 16 Terrain Rammed . | . . . . Walls Destroyed . | . . . . Machines Disabled . | . . . . Actions | -11 -10 -10 -10 --------- Run | Yrd Mat Min Sub Total 4039 | 44 1839 1410 746 Wait 517 | . 189 244 84 Move 3307 | 35 1536 1108 628 Hop . | . . . . Pick Up 25 | 3 17 3 2 Fast Attach 15 | 6 5 2 2 Attach 5 | . 4 . 1 Detach 4 | . 4 . . Swap 9 | . 6 1 2 Drop 15 | . 6 6 3 Fire 132 | . 71 37 24 Melee . | . . . . Ram . | . . . . Kick . | . . . . Crush 10 | . 1 9 . Escape Stasis . | . . . . Rewire . | . . . . Trap . | . . . . Miscellaneous . | . . . . Route ------- -11/Scrapyard -10/Materials (discovered 6 exits: *Mat x3 / *Min x2 / *Sub) -10/Mines (discovered 3 exits: *Mat x2 / *Sub) -10/Subcaves (discovered 1 exit: *Mat) History --------- Turn | Location | Event 23 | -11/Scrapyard | Discovered new exit (range 16) 66 | -11/Scrapyard | Entered Materials 78 | -10/Materials | Discovered new exit (range 16) 306 | -10/Materials | Build established: Mutant 639 | -10/Materials | Discovered new exit (range 8) 1074 | -10/Materials | Lost 3 parts (1p1n1w) 1275 | -10/Materials | Discovered new exit (range 14) 1835 | -10/Materials | Discovered new exit (range 13) 2054 | -10/Materials | Discovered new exit (range 6) 2410 | -10/Materials | Discovered new exit (range 10) 2423 | -10/Materials | Identified exit to Materials 2503 | -10/Materials | Identified exit to Mines 2604 | -10/Materials | Identified exit to Subcaves 3015 | -10/Materials | Entered Mines 3023 | -10/Mines | Met a Derelict who couldn't figure out how to use a Trap Extractor 3183 | -10/Mines | Learned Materials stockpile data 3591 | -10/Mines | Met a Derelict shopkeep closing up shop 3767 | -10/Mines | Received a Rocket Launcher from a helpful Derelict 4159 | -10/Mines | Discovered exit to Materials (range 5) 4177 | -10/Mines | Discovered exit to Subcaves (range 5) 4304 | -10/Mines | Core integrity fell below 50% 4318 | -10/Mines | Discovered exit to Materials (range 5) 5204 | -10/Mines | Entered Subcaves 5292 | -10/Subcaves | Discovered new exit (range 10) 5307 | -10/Subcaves | Identified exit to Materials 5319 | -10/Subcaves | Ambushed by swarm of Subdwellers 5519 | -10/Subcaves | Shifting Twisted Machinery released Mak. System Restoration Module 5524 | -10/Subcaves | Shifting Twisted Machinery released Battle Cannon 5562 | -10/Subcaves | Shifting Twisted Machinery released Sub. Laser 5642 | -10/Subcaves | Core integrity fell below 20% 5999 | -10/Subcaves | Ambushed by Subdwellers from Twisted Machinery 6099 | -10/Subcaves | A swath of the cavern ceiling suddenly collapsed 6389 | -10/Subcaves | Destroyed by ND-N4Q(R) with Subdweller Beam Cannon Last Messages --------------- 06008_ A0-GMA(g) destroyed. 06011_ 92-K2R(O) collects matter. 06013_ Lgt. Nuclear Core destroyed. 06013_ YP-8FH(R) destroyed. 06014_ 92-K2R(O) collects matter. 06018_ R6-DJM(R) destroyed. 06021_ 92-K2R(O) collects matter. 06030_ 92-K2R(O) puts together Battle Cannon. 06035_ Acquired Sub. Power Source. 06043_ Dropped Lgt. Cannon. 06044_ Acquired Battle Cannon. 06099_ 02-6DY(g) crushed by falling debris. 06099_ 02-6DY(g) system corrupted by crushing effect. A swath of the cavern ceiling suddenly collapses. 06184_ Subatomizers dissect the Lgt. Ion Engine. 06190_ Acquired 23 matter. 06195_ Subatomizers dissect the Lgt. Ion Engine. 06387_ Critical hit (Meltdown: +290). Map ----- +----------------------------------------------------+ | ?????????????????????????????????????????????????? | | ?????????????????????????????????????????????????? | | ?????????????????????????????????????????????????? | | ?????????????????????????????????????????????????? | | ?????????????????????????????????????????????????? | | ?????????????????????????????????????????????????? | | ?????????????????????????????????????????????????? | | ?????????????????????????????????????????????????? | | ?????????????????????????????????????????????????? | | ?????????????????????????????????????????????????? | | ?????????????? ?????????????????????????????????? | | ?????????????# ?????????????????????????????????? | | ?????????????# ?????????????????????????????????? | | ????????????## ?????????????????????????????????? | | ???????????## #????????##??? ??????????????????? | | ???????????# ##????### ###=???????????????????? | | ???????????? ###?## &????????????????????? | | ?????????????# ### ?????????????????????? | | ??????????????# #??????????????????????? | | ??????????????# #??###???#??????????????? | | ???????????#### #?# # #??????????????? | | ??????????## ##" ?????????????????? | | ??????????# "#????????????????????? | | ??????????# #?????????????????????? | | ????????????# ##????????????????????? | | ????????????# g@ #????????????????????? | | ???????????## ???????????????? | | ?????????### R"% "" #???????????? | | ?????????# ## # " #?????????????? | | ?????????# ####### #? #??????????????? | | ?????????# #?????# ### ##??????????????????? | | ?????????# ##???? #??##???????????????????? | | ?????????# #??? ##???????????????????????? | | ?????????# #??# #????????????????????????? | | ?????????## #??## #????????????????????????? | | ??????????## #???# ????????????????????????? | | ???????????## ##?? ????????????????????????? | | ????????????# #??# ????????????????????????? | | ???????????## #??## ????????????????????????? | | ???????????# ##???## ?????????????????????????? | | ???????????## #????????????????????????????????? | | ???????????## #????????????????????????????????? | | ??????????## ##????????????????????????????????? | | ??????????# ##?????????????????????????????????? | | ??????????# ##?????????????????????????????????? | | ??????????## ##????????????????????????????????? | | ??????????## #????????????????????????????????? | | ??????????# #????????????????????????????????? | | ??????????# ##????????????????????????????????? | | ??????????## #????????????????????????????????? | +----------------------------------------------------+ Best States ------------- Heat Dissipation 25 Energy Generation 15 Energy Capacity 250 Matter Stores 300 Matter Capacity 300 Sight Range 16 Terrain Scan Density 10 Armor Coverage 80 Evasion (%) 40 Recoil Reduction 2 Item Schematics ----------------- None Robot Schematics ------------------ None Fabricated ------------ Nothing Alien Tech Used ----------------- None Achievements -------------- Backstab Challenges ------------ None Game ------ Seed LinearServoLegs Manual? 0 Play Time 00:35:22 Cumulative 3.0 hours Start 2024.04.11 @ 16:45:48 End 2024.04.11 @ 17:18:18 Sessions 1 Manual Loads 0 Difficulty Rogue Special Mode None Game No. 8 Rogue 8 Adventurer 0 Explorer 0 Win Type - Total 0 Types 0/0/0/0/0/0/0/0/0 Lore% 4 Gallery% 6 Achievement% 7 Wizard Run 0 Options --------- Layout 1 ASCII 0 Keyboard 0 Movement Mouse Keybinds 0 Fullscreen 1 Font 24/Terminus Map View 50x35 Zoom Use 0% Tactical HUD 1 Map Filters NONE Filters NONE Steam 1 RUN: ef982ade-ee02-4362-979d-8cda2c320fee